fUSD/lending_fUSD_20241112
["ID","MTS","AMOUNT","RATE_DAILY","PERIOD"]
[342032946,1731373834180,-300.0,0.00014999,2]
[342032947,1731373834190,-500.0,0.00014999,2]
[342032948,1731373834199,-500.0,0.00014999,2]
[342032949,1731373834209,-500.0,0.00014999,2]
[342032950,1731373834218,-152.57,0.00014999,2]
[342032951,1731373834228,-500.0,0.00014999,2]
[342032952,1731373834237,-332.38,0.00014999,2]
[342032953,1731373834248,-500.0,0.00014999,2]
[342032954,1731373834257,-500.0,0.00014999,2]
[342032955,1731373834266,-500.0,0.00014999,2]
[342032956,1731373834276,-482.43,0.00014999,2]
[342032957,1731373834285,-500.0,0.00014999,2]
[342032958,1731373834294,-500.0,0.00014999,2]
[342032959,1731373834304,-637.43,0.00014999,2]
[342032960,1731373834313,-500.0,0.00014999,2]
[342032961,1731373834322,-500.0,0.00014999,2]
[342032962,1731373834331,-571.46,0.00014999,2]
[342032963,1731373834340,-500.0,0.00014999,2]
[342032964,1731373834351,-572.97,0.00014999,2]
[342032965,1731373834360,-185.83,0.00014999,2]
[342032966,1731373834369,-500.0,0.00014999,2]
[342032967,1731373834379,-560.43,0.00014999,2]
[342032968,1731373834388,-500.0,0.00014999,2]
[342032969,1731373834397,-500.0,0.00014999,2]
[342032970,1731373834406,-500.0,0.00014999,2]
[342032971,1731373834419,-500.0,0.00014999,2]
[342032972,1731373834428,-500.0,0.00014999,2]
[342032973,1731373834437,-500.0,0.00014999,2]
[342032974,1731373834446,-500.0,0.00014999,2]
[342032975,1731373834455,-459.73,0.00014999,2]
[342032976,1731373834464,-503.70099969,0.00014999,2]
[342032977,1731373834473,-500.0,0.00014999,2]
[342032978,1731373834483,-500.0,0.00014999,2]
[342032979,1731373834492,-500.0,0.00014999,2]
[342032980,1731373834501,-500.0,0.00014999,2]
[342032981,1731373834510,-500.0,0.00014999,2]
[342032982,1731373834519,-500.0,0.00014999,2]
[342032983,1731373834528,-500.0,0.00014999,2]
[342032984,1731373834537,-500.0,0.00014999,2]
[342032985,1731373834546,-500.0,0.00014999,2]
[342032986,1731373834555,-500.0,0.00014999,2]
[342032987,1731373834565,-500.0,0.00014999,2]
[342032988,1731373834574,-500.0,0.00014999,2]
[342032989,1731373834583,-500.0,0.00014999,2]
[342032990,1731373834592,-500.0,0.00014999,2]
[342032991,1731373834602,-500.0,0.00014999,2]
[342032992,1731373834611,-500.0,0.00014999,2]
[342032993,1731373834619,-500.0,0.00014999,2]
[342032994,1731373834628,-500.0,0.00014999,2]
[342032995,1731373834637,-412.36243255,0.00014999,2]
[342032996,1731373834646,-500.0,0.00014999,2]
[342032997,1731373834656,-174.52104477,0.00014999,2]
[342032998,1731373834668,-219.10314129,0.00014999,2]
[342032999,1731373834678,-403.94633262,0.00014999,2]
[342033000,1731373834687,-600.23,0.00014999,2]
[342033001,1731373834696,-500.0,0.00014999,2]
[342033002,1731373834706,-500.0,0.00014999,2]
[342033003,1731373834715,-500.0,0.00014999,2]
[342033004,1731373834724,-229.90124031,0.00014999,2]
[342033005,1731373834733,-500.0,0.00014999,2]
[342033006,1731373834742,-500.0,0.00014999,2]
[342033007,1731373834751,-500.22,0.00014999,2]
[342033008,1731373834761,-1125.0,0.00014999,2]
[342033009,1731373834770,-500.0,0.00014999,2]
[342033010,1731373834779,-500.0,0.00014999,2]
[342033011,1731373834788,-500.0,0.00014999,2]
[342033012,1731373834797,-500.0,0.00014999,2]
[342033013,1731373834806,-503.45696408,0.00014999,2]
[342033014,1731373834815,-500.0,0.00014999,2]
[342033015,1731373834824,-380.84,0.00014999,2]
[342033016,1731373834833,-500.0,0.00014999,2]
[342033017,1731373834842,-500.0,0.00014999,2]
[342033018,1731373834853,-500.0,0.00014999,2]
[342033019,1731373834863,-500.0,0.00014999,2]
[342033020,1731373834872,-448.5,0.00014999,2]
[342033021,1731373834881,-3739707.76183533,0.00015,2]
[342033022,1731373834895,-653.14777444,0.00015,2]
[342033023,1731373834906,-649.36951534,0.00015,2]
[342033024,1731373834920,-584.78439085,0.00015,2]
[342033025,1731373834947,-64022.36,0.00015,2]
[342033026,1731373834958,-4457.72766,0.00015,2]
[342033027,1731373834969,-2049.41666824,0.00015,2]
[342033028,1731373834980,-6460.59423791,0.00015,2]
[342033029,1731373834991,-21478.23201718,0.00015,2]
[342033030,1731373835007,-627.52758142,0.00015,2]
[342033031,1731373835018,-178328.0,0.00015,2]
[342033035,1731373837766,-165.73,0.00013228,2]
[342033036,1731373837776,-174.39,0.00014599,2]
[342033037,1731373837786,-1092.13,0.00014998,2]
[342033040,1731373837795,-1092.13,0.00014999,2]
[342033041,1731373837804,-1092.13,0.00014999,2]
[342033042,1731373837813,-1092.13,0.00014999,2]
[342033043,1731373837823,-1092.13,0.00014999,2]
[342033044,1731373837833,-1092.13,0.00014999,2]
[342033045,1731373837842,-1092.13,0.00014999,2]
[342033046,1731373837852,-474.86618944,0.00014999,2]
[342033047,1731373837863,-617.26381056,0.00014999,2]
[342033048,1731373837873,-1092.13,0.00014999,2]
[342033049,1731373837882,-89.46354385,0.00014999,2]
[342033050,1731373837893,-1002.66645615,0.00014999,2]
[342033051,1731373837903,-1092.13,0.00014999,2]
[342033052,1731373837913,-563.74178124,0.00014999,2]
[342033053,1731373837924,-528.38821876,0.00014999,2]
[342033054,1731373837934,-1092.13,0.00014999,2]
[342033055,1731373837943,-1092.13,0.00014999,2]
[342033056,1731373837953,-1092.13,0.00014999,2]
[342033057,1731373837962,-1074.67128132,0.00014999,2]
[342033058,1731373837974,-17.45871868,0.00014999,2]
[342033059,1731373837983,-820.0913365,0.00015,2]
[342033060,1731373837994,-1366.88211126,0.00015,2]
[342033061,1731373838016,-1092.13,0.00014999,2]
[342033062,1731373838025,-5587.86999999,0.00015,2]
[342033063,1731373838086,-2657.63140208,0.00015,2]
[342033064,1731373838176,-34570.99105226,0.00015,2]
[342033065,1731373838188,-530.2869824,0.00015,2]
[342033066,1731373838199,-1782.02,0.00015,2]
[342033071,1731373839710,-4477.18472832,0.000149,2]
[342033072,1731373839723,-263.0208998,0.000149,2]
[342033073,1731373839734,-551.27700006,0.000149,2]
[342033074,1731373839812,-353.24948643,0.000149,2]
[342033075,1731373839905,-879.11281164,0.000149,2]
[342033076,1731373839916,-1092.13,0.00014999,2]
[342033077,1731373839929,-1092.13,0.00014999,2]
[342033078,1731373839939,-1092.13,0.00014999,2]
[342033079,1731373839948,-1092.13,0.00014999,2]
[342033080,1731373839957,-1092.13,0.00014999,2]
[342033081,1731373839967,-195391.85159509,0.00015,2]
[342033082,1731373839976,-3837.57029927,0.00015,2]
[342033083,1731373839986,-1218830.81529399,0.00015,2]
[342033084,1731373840068,-387.051137,0.00015,2]
[342033085,1731373840085,-9043.99339255,0.00015,2]
[342033117,1731373842726,-1091.0,0.0001475,2]
[342033118,1731373842736,-673.09252418,0.00014999,2]
[342033119,1731373842747,-419.03747582,0.00014999,2]
[342033120,1731373842756,-1065.7436425,0.00014999,2]
[342033121,1731373842768,-26.403752,0.00014999,2]
[342033123,1731373842777,-3485.76736516,0.00015,2]
[342033124,1731373842788,-3046.71430899,0.00015,2]
[342033125,1731373842799,-2950.50441458,0.00015,2]
[342033126,1731373842893,-5999.999985,0.00015,2]
[342033127,1731373842905,-646.2314293,0.00015,2]
[342033128,1731373842979,-11079.4974464,0.00015,2]
[342033129,1731373842991,-9562.42988541,0.00015,2]
[342033130,1731373843003,-112366.87971178,0.00015,2]
[342033131,1731373843014,-4700.48605076,0.00015,2]
[342033132,1731373843025,-3567.77162227,0.00015,2]
[342033134,1731373843162,-437.70470909,0.00015,2]
[342033159,1731373845933,-417.594,0.00015,2]
[342033160,1731373845946,-4790.40504119,0.00015,2]
[342033161,1731373845958,-6800.0,0.00015,2]
[342033162,1731373845971,-40921.59361128,0.00015,2]
[342033163,1731373846021,-1439.74349867,0.00015,2]
[342033164,1731373846182,-1892461.84890279,0.00015,2]
[342033165,1731373846196,-1719.03197947,0.00015,2]
[342033540,1731373929073,2000.0,0.0001423,20]
[342033541,1731374131261,150.0,0.00020392,120]
[342033542,1731374139118,1283.35,0.00011987,2]
[342033547,1731374195911,-4890.37499725,0.0002,30]
[342033548,1731374195940,-4210.8291235,0.0002,30]
[342033553,1731374430775,150.0,0.00022143,120]
[342033555,1731374730773,150.0,0.0002244,120]
[342033556,1731374760437,6314.0,0.0002399,60]
[342033559,1731374836605,1267.97,0.00011619,2]
[342033578,1731375026502,150.0,0.000201,30]
[342033587,1731375032103,-412.51,0.00012889,2]
[342033588,1731375032112,-200.0,0.00012954,2]
[342033589,1731375032122,-150.0,0.00012999,2]
[342033590,1731375032131,-578.51457205,0.00013,2]
[342033591,1731375035740,-671377.60260414,0.00013,2]
[342033592,1731375035749,-601.14163466,0.00013,2]
[342033593,1731375035758,-5084.54073236,0.0001305,2]
[342033594,1731375035768,-166.29665263,0.000133,2]
[342033595,1731375035777,-77838.37458212,0.0001338,2]
[342033596,1731375035786,-250.0,0.00013427,2]
[342033597,1731375035795,-500.0,0.000135,2]
[342033598,1731375035803,-2107.95,0.00013505,2]
[342033599,1731375035815,-725.66,0.00013505,2]
[342033600,1731375035823,-1000.0,0.0001351,2]
[342033601,1731375035833,-150.99,0.0001351,2]
[342033602,1731375035841,-250.0,0.00013522,2]
[342033603,1731375035850,-1368.39617934,0.00013697,2]
[342033604,1731375035859,-500.0,0.00013698,2]
[342033605,1731375035868,-259.27,0.00013698,2]
[342033606,1731375035877,-500.0,0.00013698,2]
[342033607,1731375035886,-500.0,0.00013698,2]
[342033608,1731375035896,-500.0,0.00013698,2]
[342033609,1731375035905,-612.22,0.00013698,2]
[342033610,1731375035914,-200.0,0.00013699,2]
[342033611,1731375035923,-157.22,0.00013699,2]
[342033612,1731375035932,-150.0,0.00013699,2]
[342033613,1731375035941,-200.0,0.000137,2]
[342033614,1731375035950,-165.18,0.00013701,2]
[342033615,1731375035959,-176.35,0.00013726,2]
[342033616,1731375035968,-250.0,0.00013771,2]
[342033617,1731375035978,-657.48,0.00013831,2]
[342033618,1731375035987,-23900.0,0.00013846,2]
[342033619,1731375035996,-382.19904283,0.00013859,2]
[342033620,1731375036006,-382.19904283,0.00013862,2]
[342033621,1731375036015,-382.19904283,0.00013863,2]
[342033622,1731375036024,-382.19904283,0.00013869,2]
[342033623,1731375036034,-382.19904283,0.00013869,2]
[342033624,1731375036042,-382.19904283,0.00013873,2]
[342033626,1731375036051,-200.0,0.00013875,2]
[342033627,1731375036066,-1267.97,0.00013883,2]
[342033628,1731375036075,-200.0,0.00013886,2]
[342033629,1731375036084,-1168.19,0.0001389,2]
[342033630,1731375036092,-200.0,0.00013892,2]
[342033631,1731375036102,-200.0,0.00013893,2]
[342033632,1731375036111,-200.0,0.00013893,2]
[342033633,1731375036120,-14392.44310077,0.0001398,2]
[342033634,1731375036129,-500.0,0.00013999,2]
[342033635,1731375036137,-493.04721621,0.00013999,2]
[342033636,1731375036146,-500.0,0.00013999,2]
[342033637,1731375036155,-500.0,0.00013999,2]
[342033638,1731375036165,-500.0,0.00013999,2]
[342033639,1731375036174,-500.0,0.00013999,2]
[342033640,1731375036183,-500.0,0.00013999,2]
[342033641,1731375036193,-532.0,0.00014,2]
[342033642,1731375036201,-546159.12547388,0.00014,2]
[342033643,1731375036210,-500.0,0.00014072,2]
[342033644,1731375036219,-7510.96,0.00014073,2]
[342033645,1731375036228,-7359.95,0.00014172,2]
[342033646,1731375036239,-150.0,0.00014176,2]
[342033647,1731375036248,-7529.67,0.00014272,2]
[342033648,1731375036257,-174.17,0.00014322,2]
[342033649,1731375036266,-7429.14,0.00014444,2]
[342033650,1731375036275,-412.51,0.000145,2]
[342033651,1731375036284,-176.35,0.00014641,2]
[342033652,1731375036293,-7506.12,0.00014664,2]
[342033653,1731375036303,-401.21435438,0.00014684,2]
[342033654,1731375036315,-567.932,0.0001475,2]
[342033655,1731375036324,-1748.25,0.0001475,2]
[342033656,1731375036333,-342.513,0.0001475,2]
[342033657,1731375036342,-2632.134,0.0001475,2]
[342033658,1731375036352,-565.239,0.0001475,2]
[342033659,1731375036361,-19568.5999,0.00014783,2]
[342033660,1731375036370,-219.5299,0.000148,2]
[342033661,1731375036379,-11932.6194,0.000148,2]
[342033662,1731375036388,-1000.0,0.000148,2]
[342033663,1731375036397,-1000.0,0.000148,3]
[342033664,1731375036406,-1000.0,0.000148,4]
[342033665,1731375036415,-1000.0,0.000148,5]
[342033666,1731375036425,-688.00257783,0.000148,2]
[342033667,1731375036434,-3000.0,0.0001485,2]
[342033668,1731375036443,-1314.66865468,0.00014898,2]
[342033669,1731375036452,-684.91656333,0.00014899,2]
[342033670,1731375036461,-684.91656333,0.00014899,2]
[342033671,1731375036475,-684.91656333,0.00014899,2]
[342033672,1731375036485,-684.91656333,0.000149,2]
[342033673,1731375036494,-684.91656333,0.000149,2]
[342033674,1731375036503,-684.91656333,0.000149,2]
[342033675,1731375036513,-684.91656333,0.000149,2]
[342033676,1731375036522,-200.0,0.000149,2]
[342033677,1731375036531,-10880.201,0.000149,2]
[342033678,1731375036541,-684.91656333,0.000149,2]
[342033679,1731375036551,-371.4667942,0.000149,2]
[342033680,1731375036562,-500.61476001,0.00014973,2]
[342033681,1731375036571,-500.0,0.00014973,2]
[342033682,1731375036580,-503.20119264,0.00014973,2]
[342033683,1731375036589,-500.0,0.00014973,2]
[342033684,1731375036598,-500.0,0.00014999,2]
[342033685,1731375036607,-500.0,0.00014999,2]
[342033686,1731375036616,-500.0,0.00014999,2]
[342033687,1731375036625,-500.0,0.00014999,2]
[342033688,1731375036634,-500.0,0.00014999,2]
[342033689,1731375036644,-500.0,0.00014999,2]
[342033690,1731375036653,-500.0,0.00014999,2]
[342033691,1731375036662,-500.0,0.00014999,2]
[342033692,1731375036671,-500.0,0.00014999,2]
[342033693,1731375036680,-415.29865092,0.00014999,2]
[342033694,1731375036689,-647.15556439,0.00014999,2]
[342033695,1731375036698,-500.0,0.00014999,2]
[342033696,1731375036708,-500.0,0.00014999,2]
[342033697,1731375036718,-500.0,0.00014999,2]
[342033698,1731375036727,-500.0,0.00014999,2]
[342033699,1731375036736,-500.0,0.00014999,2]
[342033700,1731375036746,-500.0,0.00014999,2]
[342033701,1731375036755,-500.0,0.00014999,2]
[342033702,1731375036764,-500.0,0.00014999,2]
[342033703,1731375036773,-500.0,0.00014999,2]
[342033704,1731375036782,-500.0,0.00014999,2]
[342033705,1731375036791,-393.59271897,0.00014999,2]
[342033706,1731375036800,-613.69115035,0.00014999,2]
[342033707,1731375036811,-500.0,0.00014999,2]
[342033708,1731375036819,-500.0,0.00014999,2]
[342033709,1731375036828,-500.0,0.00014999,2]
[342033710,1731375036837,-500.0,0.00014999,2]
[342033711,1731375036846,-500.0,0.00014999,2]
[342033712,1731375036855,-500.0,0.00014999,2]
[342033713,1731375036864,-500.0,0.00014999,2]
[342033714,1731375036873,-500.0,0.00014999,2]
[342033715,1731375036881,-243.16543304,0.00014999,2]
[342033716,1731375036890,-233.07873846,0.00014999,2]
[342033717,1731375036899,-500.0,0.00014999,2]
[342033718,1731375036908,-500.0,0.00014999,2]
[342033719,1731375036917,-564.42,0.00014999,2]
[342033720,1731375036926,-500.0,0.00014999,2]
[342033721,1731375036935,-500.0,0.00014999,2]
[342033722,1731375036944,-482.22511118,0.00014999,2]
[342033723,1731375036953,-546.04316351,0.00014999,2]
[342033724,1731375036962,-500.0,0.00014999,2]
[342033725,1731375036971,-500.0,0.00014999,2]
[342033726,1731375036980,-513.5,0.00014999,2]
[342033727,1731375036990,-500.0,0.00014999,2]
[342033728,1731375036999,-500.0,0.00014999,2]
[342033729,1731375037008,-500.0,0.00014999,2]
[342033730,1731375037017,-507.11578527,0.00014999,2]
[342033731,1731375037027,-500.0,0.00014999,2]
[342033732,1731375037036,-500.0,0.00014999,2]
[342033733,1731375037045,-254.37946949,0.00014999,2]
[342033734,1731375037054,-546.51048382,0.00014999,2]
[342033735,1731375037066,-520.7479282,0.00014999,2]
[342033736,1731375037075,-500.0,0.00014999,2]
[342033737,1731375037084,-500.0,0.00014999,2]
[342033738,1731375037094,-500.0,0.00014999,2]
[342033739,1731375037103,-500.0,0.00014999,2]
[342033740,1731375037112,-500.0,0.00014999,2]
[342033741,1731375037121,-500.0,0.00014999,2]
[342033742,1731375037315,-500.0,0.00014999,2]
[342033743,1731375037324,-500.0,0.00014999,2]
[342033744,1731375037334,-500.0,0.00014999,2]
[342033745,1731375037343,-500.0,0.00014999,2]
[342033746,1731375037352,-500.0,0.00014999,2]
[342033747,1731375037362,-479.81535057,0.00014999,2]
[342033748,1731375037371,-326.04042037,0.00014999,2]
[342033749,1731375037380,-509.28068428,0.00014999,2]
[342033750,1731375037389,-500.0,0.00014999,2]
[342033751,1731375037398,-500.0,0.00014999,2]
[342033752,1731375037407,-500.0,0.00014999,2]
[342033753,1731375037416,-500.0,0.00014999,2]
[342033754,1731375037426,-512.67394181,0.00014999,2]
[342033755,1731375037435,-1125.0,0.00014999,2]
[342033756,1731375037444,-500.0,0.00014999,2]
[342033757,1731375037453,-500.0,0.00014999,2]
[342033758,1731375037463,-500.0,0.00014999,2]
[342033759,1731375037476,-243.82,0.00014999,2]
[342033760,1731375037489,-500.0,0.00014999,2]
[342033761,1731375037510,-500.0,0.00014999,2]
[342033762,1731375037528,-500.0,0.00014999,2]
[342033763,1731375037540,-500.0,0.00014999,2]
[342033764,1731375037553,-500.0,0.00014999,2]
[342033765,1731375037567,-500.0,0.00014999,2]
[342033766,1731375037577,-500.0,0.00014999,2]
[342033767,1731375037588,-500.0,0.00014999,2]
[342033768,1731375037597,-500.0,0.00014999,2]
[342033769,1731375037606,-500.0,0.00014999,2]
[342033770,1731375037615,-500.0,0.00014999,2]
[342033771,1731375037624,-154.04533504,0.00014999,2]
[342033772,1731375037633,-500.0,0.00014999,2]
[342033773,1731375037642,-500.0,0.00014999,2]
[342033774,1731375037650,-1232.12,0.00014999,2]
[342033775,1731375037659,-1232.12,0.00014999,2]
[342033776,1731375037668,-1232.12,0.00014999,2]
[342033777,1731375037678,-535.69,0.00014999,2]
[342033778,1731375037687,-1232.12,0.00014999,2]
[342033779,1731375037695,-1232.12,0.00014999,2]
[342033780,1731375037704,-1232.12,0.00014999,2]
[342033781,1731375037713,-1232.12,0.00014999,2]
[342033782,1731375037722,-1232.12,0.00014999,2]
[342033783,1731375037731,-1232.12,0.00014999,2]
[342033785,1731375037740,-500.0,0.00014999,2]
[342033786,1731375037749,-500.0,0.00014999,2]
[342033787,1731375037758,-1232.12,0.00014999,2]
[342033788,1731375037767,-500.0,0.00014999,2]
[342033789,1731375037776,-1232.12,0.00014999,2]
[342033790,1731375037785,-1232.12,0.00014999,2]
[342033791,1731375037794,-1232.12,0.00014999,2]
[342033792,1731375037802,-1232.12,0.00014999,2]
[342033793,1731375037814,-1232.12,0.00014999,2]
[342033794,1731375037823,-1232.12,0.00014999,2]
[342033795,1731375037832,-1232.12,0.00014999,2]
[342033796,1731375037841,-506.45886693,0.00014999,2]
[342033797,1731375037850,-1232.12,0.00014999,2]
[342033798,1731375037859,-1232.12,0.00014999,2]
[342033799,1731375037868,-1232.12,0.00014999,2]
[342033800,1731375037877,-1232.12,0.00014999,2]
[342033801,1731375037886,-1232.12,0.00014999,2]
[342033802,1731375037895,-1232.12,0.00014999,2]
[342033803,1731375037904,-1232.24,0.00014999,2]
[342033804,1731375037914,-500.0,0.00014999,2]
[342033805,1731375037923,-500.0,0.00014999,2]
[342033806,1731375037932,-500.0,0.00014999,2]
[342033807,1731375037941,-500.0,0.00014999,2]
[342033808,1731375037950,-500.0,0.00014999,2]
[342033809,1731375037959,-505.49423863,0.00014999,2]
[342033810,1731375037969,-500.0,0.00014999,2]
[342033811,1731375037978,-500.0,0.00014999,2]
[342033812,1731375037987,-500.0,0.00014999,2]
[342033813,1731375037996,-500.0,0.00014999,2]
[342033814,1731375038005,-500.0,0.00014999,2]
[342033815,1731375038014,-325.59288598,0.00014999,2]
[342033816,1731375038023,-500.0,0.00014999,2]
[342033817,1731375038032,-500.0,0.00014999,2]
[342033818,1731375038041,-500.0,0.00014999,2]
[342033819,1731375038050,-500.0,0.00014999,2]
[342033820,1731375038059,-500.0,0.00014999,2]
[342033821,1731375038070,-500.0,0.00014999,2]
[342033822,1731375038079,-500.0,0.00014999,2]
[342033823,1731375038088,-500.0,0.00014999,2]
[342033824,1731375038098,-460.52000517,0.00014999,2]
[342033825,1731375038107,-400.84986259,0.00014999,2]
[342033826,1731375038116,-500.0,0.00014999,2]
[342033827,1731375038125,-500.0,0.00014999,2]
[342033828,1731375038134,-500.0,0.00014999,2]
[342033829,1731375038144,-500.0,0.00014999,2]
[342033830,1731375038153,-500.0,0.00014999,2]
[342033831,1731375038162,-500.0,0.00014999,2]
[342033832,1731375038171,-500.0,0.00014999,2]
[342033833,1731375038181,-500.0,0.00014999,2]
[342033834,1731375038190,-500.0,0.00014999,2]
[342033835,1731375038200,-519.2,0.00014999,2]
[342033836,1731375038209,-500.0,0.00014999,2]
[342033837,1731375038218,-500.0,0.00014999,2]
[342033838,1731375038227,-500.0,0.00014999,2]
[342033839,1731375038237,-262.19760524,0.00014999,2]
[342033840,1731375038246,-500.0,0.00014999,2]
[342033841,1731375038255,-500.0,0.00014999,2]
[342033842,1731375038265,-500.0,0.00014999,2]
[342033843,1731375038274,-500.0,0.00014999,2]
[342033844,1731375038284,-500.0,0.00014999,2]
[342033845,1731375038294,-216.89319708,0.00014999,2]
[342033846,1731375038303,-166.63381866,0.00014999,2]
[342033847,1731375038313,-525.45111429,0.00014999,2]
[342033848,1731375038322,-515.26038134,0.00014999,2]
[342033849,1731375038331,-333.37874573,0.00014999,2]
[342033850,1731375038341,-527.82015945,0.00014999,2]
[342033851,1731375038350,-521.58693716,0.00014999,2]
[342033852,1731375038359,-8158.50884965,0.00015,2]
[342033853,1731375038369,-2878.17772445,0.00015,2]
[342033854,1731375038378,-186877.86306688,0.00015,2]
[342033855,1731375038388,-9133930.24237203,0.00015,2]
[342033856,1731375038616,-918.42911871,0.00015,2]
[342033857,1731375038627,-253.35526429,0.00015,2]
[342033858,1731375038637,-1256.58093498,0.00015,2]
[342033859,1731375038656,-2369.29526968,0.00015,2]
[342033860,1731375038823,-151.497,0.0001475,2]
[342033861,1731375038836,-500.78478558,0.00014999,2]
[342033862,1731375038845,-1604.54219912,0.00015,2]
[342033863,1731375038856,-859.64844264,0.00015,2]
[342033864,1731375038867,-39342.03639166,0.00015,2]
[342033865,1731375038878,-1996.227967,0.00015,2]
[342033866,1731375038893,-4913.41947462,0.00015,2]
[342033867,1731375038904,-42020.44404467,0.00015,2]
[342033868,1731375038940,-536.193945,0.00015,2]
[342033869,1731375039994,-576.34552873,0.00013698,2]
[342033872,1731375040004,-148.44917216,0.00014999,2]
[342033873,1731375040015,-443.70952751,0.00014999,2]
[342033874,1731375040024,-172.81580449,0.00015,2]
[342033875,1731375040035,-2000.56420901,0.00015,2]
[342033876,1731375040154,-4545.795321,0.00015,2]
[342033877,1731375040165,-525.96345829,0.00015,2]
[342033878,1731375040176,-1662.08570524,0.00015,2]
[342033879,1731375040187,-14424.48245563,0.00015,2]
[342033880,1731375040198,-372.93359747,0.00015,2]
[342033881,1731375040209,-452.81286236,0.00015,2]
[342033882,1731375040236,-1422400.0,0.00015,2]
[342033883,1731375040247,-916.507168,0.00015,2]
[342033884,1731375040259,-173307.60157545,0.00015,2]
[342033885,1731375040270,-27613.5973426,0.00015,2]
[342033886,1731375040281,-467.89291831,0.00015,2]
[342033894,1731375043003,-500.0,0.00013698,2]
[342033895,1731375043013,-376.6433049,0.00013698,2]
[342033896,1731375043022,-8033.3566951,0.00015,2]
[342033898,1731375043156,-520.2443575,0.00015,2]
[342033899,1731375043167,-18816.60016203,0.00015,2]
[342033901,1731375043523,-517.90123753,0.00013698,2]
[342033903,1731375043533,-6028.17465065,0.00015,2]
[342033905,1731375043545,-2518.42188978,0.00015,2]
[342033907,1731375043556,-1198.64228578,0.00015,2]
[342033909,1731375043570,-17356.87792077,0.00015,2]
[342033919,1731375046017,-389.3853225,0.000129,2]
[342033921,1731375046026,-500.0,0.00013698,2]
[342033922,1731375046035,-645.80271964,0.00013698,2]
[342033923,1731375046044,-1145.00039609,0.00015,2]
[342033924,1731375046126,-104.78426908,0.00015,2]
[342033925,1731375046137,-682801.42745379,0.00015,2]
[342033926,1731375046179,-592.89554137,0.00015,2]
[342033927,1731375046191,-325.01900158,0.00015,2]
[342033928,1731375046347,-6079.62412039,0.00015,2]
[342033929,1731375046359,-4010.1299904,0.00015,2]
[342033930,1731375046372,-1179.300001,0.00015,2]
[342033931,1731375046384,-22200.000002,0.00015,2]
[342033932,1731375046396,-78271.90996152,0.00015,2]
[342033933,1731375046408,-852.36360554,0.00015,2]
[342033934,1731375046420,-8371.02234716,0.00015,2]
[342033935,1731375046507,-3421.21369129,0.00015,2]
[342033938,1731375046520,-4566.745487,0.00015,2]
[342033940,1731375046532,-7448.703921,0.00015,2]
[342033945,1731375127996,881.16,0.00012329,2]
[342033952,1731375576761,1189.7,0.0001179,2]
[342033955,1731376026317,5025.228,0.00024,60]
[342033956,1731376044796,5025.228,0.00024,60]
[342033958,1731376149099,-168.9046752,0.00012687,2]
[342033959,1731376149119,-881.16,0.00012786,2]
[342033960,1731376149141,-177.26,0.00012872,2]
[342033961,1731376149161,-1053.97,0.00012872,2]
[342033962,1731376149182,-26.45295907,0.00012915,2]
[342033963,1731376171110,-150.80704093,0.00012915,2]
[342033964,1731376171132,-177.26,0.00012958,2]
[342033965,1731376171152,-150.0,0.00012986,2]